bitfinex/quotes_BTCUSD_20251212
["timestamp","ask_amount","ask_price","bid_price","bid_amount"]
[1765570620430,0.01108881,90181.0,90180.0,0.01608]
[1765570620630,0.2217762,90181.0,90180.0,0.03986]
[1765570620839,0.2217762,90181.0,90180.0,0.04884652]
[1765570621536,0.2381762,90181.0,90180.0,0.04884652]
[1765570621777,0.3058362,90181.0,90180.0,0.04884652]
[1765570622079,0.35585459,90181.0,90180.0,0.02492326]
[1765570622431,0.35585459,90181.0,90180.0,0.04884744]
[1765570623439,0.33139459,90181.0,90180.0,0.04884953]
[1765570623615,0.33139459,90181.0,90180.0,0.02492326]
[1765570623957,0.2217762,90181.0,90180.0,0.02492326]
[1765570626017,0.2626362,90181.0,90180.0,0.02492326]
[1765570626241,0.3058362,90181.0,90180.0,0.02492326]
[1765570626904,0.2649762,90181.0,90180.0,0.02392326]
[1765570627713,0.3058362,90181.0,90180.0,0.02392326]
[1765570627918,0.2813762,90181.0,90180.0,0.02392326]
[1765570628323,0.2649762,90181.0,90180.0,0.02392326]
[1765570630462,0.2217762,90181.0,90180.0,0.02392326]
[1765570632471,0.2626362,90181.0,90180.0,0.02392326]
[1765570632680,0.3058362,90181.0,90180.0,0.02392326]
[1765570633105,0.2217762,90181.0,90180.0,0.02392326]
[1765570633513,0.01108844,90184.0,90180.0,0.06278326]
[1765570633721,0.01108745,90192.0,90184.0,0.22176693]
[1765570633940,0.01108708,90195.0,90185.0,0.04047287]
[1765570633941,0.01108721,90194.0,90185.0,0.04047287]
[1765570634139,0.01108733,90193.0,90185.0,0.04047287]
[1765570634341,0.0110877,90190.0,90185.0,0.04047287]
[1765570634578,0.01108733,90193.0,90185.0,0.04047287]
[1765570634779,0.01108782,90189.0,90185.0,0.04047287]
[1765570634988,0.01108758,90191.0,90185.0,0.04047287]
[1765570635148,0.0110877,90190.0,90185.0,0.04047287]
[1765570635360,0.01108794,90188.0,90185.0,0.04147287]
[1765570635599,0.01108794,90188.0,90185.0,0.00361287]
[1765570635801,0.01108794,90188.0,90185.0,0.01869287]
[1765570636000,0.01108708,90195.0,90185.0,0.04247287]
[1765570636378,0.22174912,90193.0,90185.0,0.05906955]
[1765570636600,0.0110877,90190.0,90185.0,0.05906955]
[1765570637196,0.0110877,90190.0,90185.0,0.05806955]
[1765570637395,0.0110877,90190.0,90185.0,0.05706955]
[1765570637630,0.0110877,90190.0,90185.0,0.20506955]
[1765570638042,0.01108758,90191.0,90185.0,0.20506955]
[1765570638202,0.01108721,90194.0,90185.0,0.20506955]
[1765570638403,0.01108733,90193.0,90185.0,0.05806955]
[1765570638609,0.01108721,90194.0,90185.0,0.10125755]
[1765570638823,0.01108684,90197.0,90185.0,0.10125755]
[1765570639052,0.01108708,90195.0,90185.0,0.05806955]
[1765570639266,0.01108696,90196.0,90185.0,0.05806955]
[1765570639460,0.01108721,90194.0,90185.0,0.04147287]
[1765570639845,0.01108696,90196.0,90185.0,0.05806955]
[1765570640058,0.22173859,90197.0,90185.0,0.05806955]
[1765570640297,0.01108659,90199.0,90185.0,0.05806955]
[1765570640471,0.01108647,90200.0,90185.0,0.10125755]
[1765570640709,0.01108647,90200.0,90185.0,0.12343418]
[1765570640856,0.23280605,90204.0,90185.0,0.12343418]
[1765570641278,0.01108659,90199.0,90185.0,0.12343418]
[1765570641473,0.01108647,90200.0,90185.0,0.12343418]
[1765570642104,0.01108622,90202.0,90185.0,0.12343418]
[1765570642313,0.01108647,90200.0,90185.0,0.12343418]
[1765570642518,0.01108659,90199.0,90185.0,0.12343418]
[1765570642719,0.232806,90204.0,90185.0,0.27043418]
[1765570642853,0.232806,90204.0,90185.0,0.20506955]
[1765570643195,0.01108598,90204.0,90185.0,0.22724618]
[1765570643524,0.0110861,90203.0,90185.0,0.22724618]
[1765570643656,0.01108622,90202.0,90185.0,0.27043418]
[1765570643859,0.01108659,90199.0,90185.0,0.24825755]
[1765570644046,0.01108622,90202.0,90185.0,0.24825755]
[1765570644273,0.23280778,90204.0,90185.0,0.24825755]
[1765570644470,0.01108573,90206.0,90185.0,0.24825755]
[1765570644712,0.01108561,90207.0,90185.0,0.24825755]
[1765570644919,0.22171696,90206.0,90185.0,0.24825755]
[1765570645176,0.2217194,90205.0,90185.0,0.24825755]
[1765570645927,0.01108622,90202.0,90185.0,0.24825755]
[1765570646270,0.23280525,90205.0,90185.0,0.24825755]
[1765570646396,0.0110861,90203.0,90185.0,0.24825755]
[1765570646799,0.01108598,90204.0,90185.0,0.24825755]
[1765570646997,0.22169312,90215.0,90185.0,0.24825755]
[1765570647199,0.05980815,90234.0,90185.0,0.24825755]
[1765570647200,0.01108364,90223.0,90216.0,0.22169016]
[1765570647446,0.01108327,90226.0,90216.0,0.22169016]
[1765570647447,0.01108327,90226.0,90218.0,0.23721525]
[1765570647621,0.09082711,90229.0,90218.0,0.23882812]
[1765570647822,0.09082711,90229.0,90218.0,0.26372812]
[1765570647823,0.31248574,90229.0,90218.0,0.26372812]
[1765570648252,0.09082711,90229.0,90218.0,0.26372812]
[1765570648581,0.0797442,90229.0,90218.0,0.26411714]
[1765570648911,0.06080815,90219.0,90218.0,0.26411714]
[1765570649235,0.05980815,90219.0,90218.0,0.26411714]
[1765570649848,0.05980815,90219.0,90218.0,0.04243189]
[1765570650177,0.00980815,90219.0,90218.0,0.28263714]
[1765570650325,0.0797442,90229.0,90228.0,0.26484868]
[1765570650539,0.0797442,90229.0,90228.0,0.28398155]
[1765570650985,4.2e-06,90229.0,90228.0,0.28398155]
[1765570651294,0.09968025,90239.0,90238.0,0.26482411]
[1765570651503,0.09968025,90239.0,90238.0,0.26643698]
[1765570652989,0.0002,90250.0,90238.0,0.26643698]
[1765570652990,0.0002,90250.0,90248.0,0.22161155]
[1765570653194,0.0002,90250.0,90248.0,0.28393242]
[1765570653406,0.14143398,90249.0,90248.0,0.28393242]
[1765570654112,0.19936051,90265.0,90259.0,0.22158455]
[1765570654310,0.19936051,90265.0,90259.0,0.28390542]
[1765570655095,0.210439,90265.0,90259.0,0.28390542]
[1765570655263,0.19936051,90265.0,90259.0,0.24071742]
[1765570655485,0.19936051,90265.0,90259.0,0.28390542]
[1765570655691,0.19936051,90265.0,90259.0,0.26638542]
[1765570656108,0.19936051,90265.0,90259.0,0.24071742]
[1765570656312,0.19936051,90265.0,90264.0,0.22157227]
[1765570656313,0.08931051,90265.0,90264.0,0.22157227]
[1765570656529,0.08931051,90265.0,90264.0,0.22318514]
[1765570657621,0.08931051,90265.0,90264.0,0.22618514]
[1765570658100,0.08931051,90265.0,90264.0,0.00461287]
[1765570658315,0.08931051,90265.0,90264.0,0.003]
[1765570658947,0.01107861,90264.0,90261.0,0.01752]
[1765570659164,0.100389,90265.0,90264.0,0.002]
[1765570659419,0.32195882,90265.0,90264.0,0.002]
[1765570659634,0.22157473,90263.0,90261.0,0.01752]
[1765570660071,0.01107947,90257.0,90252.0,0.01108008]
[1765570660287,0.01107935,90258.0,90255.0,0.01752]
[1765570660518,0.22158946,90257.0,90255.0,0.01752]
[1765570660755,0.01107922,90259.0,90256.0,0.01107959]
[1765570660926,0.01107898,90261.0,90256.0,0.01107959]
[1765570661110,0.100389,90265.0,90260.0,0.0110791]
[1765570661606,0.08931051,90265.0,90262.0,0.01107885]
[1765570661812,0.08931051,90265.0,90262.0,0.23265475]
[1765570662027,0.08931051,90265.0,90262.0,0.01107885]
[1765570662225,0.01107861,90264.0,90260.0,0.0110791]
[1765570662405,0.100389,90265.0,90261.0,0.01107898]
[1765570662600,0.100389,90265.0,90262.0,0.01107885]
[1765570662922,0.08931051,90265.0,90262.0,0.01207885]
[1765570664162,0.08931051,90265.0,90263.0,0.22157473]
[1765570664638,0.100389,90265.0,90262.0,0.001]
[1765570664847,0.08931051,90265.0,90262.0,0.01207885]
[1765570665075,0.08931051,90265.0,90263.0,0.22157473]
[1765570665288,0.08931051,90265.0,90263.0,0.22257473]
[1765570665743,0.08931051,90265.0,90263.0,0.2231876]
[1765570665951,0.08931051,90265.0,90263.0,0.00161287]
[1765570666164,0.00044778,90264.0,90263.0,0.00161287]
[1765570666382,0.22202245,90264.0,90262.0,0.001]
[1765570666604,0.32196101,90265.0,90240.0,0.01108156]
[1765570666605,0.2216091,90249.0,90240.0,0.01108156]
[1765570666822,0.2216091,90249.0,90200.0,1.05359389]
[1765570666823,0.2216091,90249.0,90233.0,0.043188]
[1765570667061,0.2216091,90249.0,90239.0,0.01752]
[1765570667062,0.3038291,90249.0,90239.0,0.01752]
[1765570667283,0.3038291,90249.0,90236.0,0.01752]
[1765570667498,0.2606291,90249.0,90236.0,0.01752]
[1765570667924,0.2378291,90249.0,90238.0,0.0110818]
[1765570668136,0.2378291,90249.0,90240.0,0.01108156]
[1765570668380,0.2216091,90249.0,90248.0,0.00138902]
[1765570668801,0.2378291,90249.0,90248.0,0.00138902]
[1765570669020,0.2216091,90249.0,90248.0,0.00138902]
[1765570669274,0.05427984,90254.0,90248.0,0.00138902]
[1765570669275,0.00023884,90257.0,90254.0,0.01107984]
[1765570669492,0.00023884,90257.0,90255.0,0.2437538]
[1765570669760,0.00023884,90257.0,90256.0,0.00161287]
[1765570670978,0.00023884,90257.0,90256.0,0.01917287]
[1765570672137,0.00023884,90257.0,90256.0,0.02017287]
[1765570673537,0.2218283,90257.0,90256.0,0.001]
[1765570673752,0.00023884,90257.0,90256.0,0.001]
[1765570674151,0.2218283,90257.0,90256.0,0.001]
[1765570677351,0.00023884,90257.0,90256.0,0.001]
[1765570678829,0.2218283,90257.0,90256.0,0.001]
[1765570679044,0.31181669,90257.0,90256.0,0.001]
[1765570679257,0.35501669,90257.0,90256.0,0.001]
[1765570682961,0.2617983,90257.0,90256.0,0.001]
[1765570683188,0.00023884,90257.0,90256.0,0.00161287]
[1765570683462,0.08931051,90265.0,90264.0,0.22157227]
[1765570683686,0.08931051,90265.0,90264.0,0.00161287]
[1765570684114,0.08954931,90265.0,90264.0,0.00161287]
[1765570684541,0.08954931,90265.0,90264.0,0.04480087]
[1765570684688,0.08954931,90265.0,90264.0,0.00161287]
[1765570685122,0.08954931,90265.0,90264.0,0.08555391]
[1765570685560,0.08954931,90265.0,90264.0,0.04236591]
[1765570685764,0.08954931,90265.0,90264.0,0.04580087]
[1765570686177,0.25916866,90278.0,90269.0,0.60546639]
[1765570686178,0.25338282,90278.0,90269.0,0.60546639]
[1765570686378,0.25338282,90278.0,90277.0,0.59330154]
[1765570686585,0.25338282,90278.0,90277.0,0.55704124]
[1765570687573,0.25338282,90278.0,90277.0,0.55743026]
[1765570687767,0.25338282,90278.0,90277.0,0.55943026]
[1765570688152,0.25338282,90278.0,90277.0,0.56243026]
[1765570688739,0.25338282,90278.0,90277.0,0.61244865]
[1765570688740,0.20905986,90278.0,90277.0,0.61244865]
[1765570688931,0.17583034,90278.0,90277.0,0.78946143]
[1765570689135,1e-08,90280.0,90278.0,0.05001839]
[1765570689255,0.31897681,90294.0,90293.0,0.51220111]
[1765570689455,0.31897681,90294.0,90293.0,0.63403843]
[1765570690177,0.31897681,90294.0,90293.0,0.57460198]
[1765570691756,0.31897681,90294.0,90293.0,0.59343552]
[1765570692076,0.31984214,90294.0,90293.0,0.59343552]
[1765570692694,0.31984214,90294.0,90293.0,0.59543552]
[1765570694164,0.31984214,90294.0,90293.0,0.61204801]
[1765570696560,0.31984214,90294.0,90293.0,0.56886001]
[1765570696756,0.31984214,90294.0,90293.0,0.61204801]
[1765570696998,0.31984214,90294.0,90293.0,0.75904801]
[1765570698183,0.31984214,90294.0,90293.0,0.69902647]
[1765570698397,0.31984214,90294.0,90293.0,0.74221447]
[1765570698526,0.31984214,90294.0,90293.0,0.77181386]
[1765570698744,0.31984214,90294.0,90293.0,0.69902647]
[1765570698950,0.31984214,90294.0,90293.0,0.74221447]
[1765570702007,0.31984214,90294.0,90293.0,0.77181029]
[1765570702723,0.31984214,90294.0,90293.0,0.74221447]
[1765570703603,0.31984214,90294.0,90293.0,0.69902647]
[1765570704179,0.31984214,90294.0,90293.0,0.40832647]
[1765570705165,0.31984214,90294.0,90293.0,0.44951447]
[1765570705340,0.31984214,90294.0,90293.0,0.45151447]
[1765570705748,0.31984214,90294.0,90293.0,0.44951447]
[1765570708538,0.31984214,90294.0,90293.0,0.40632647]
[1765570708740,0.31984214,90294.0,90293.0,0.44951447]
[1765570709359,0.31984214,90294.0,90293.0,0.48700732]
[1765570709904,0.31984214,90294.0,90293.0,0.44751447]
[1765570710062,0.31984214,90294.0,90293.0,0.40432647]
[1765570710257,0.31984214,90294.0,90293.0,0.44751447]
[1765570710680,0.31984214,90294.0,90293.0,0.40532647]
[1765570711222,0.31984214,90294.0,90293.0,0.40432647]
[1765570711610,0.31984214,90294.0,90293.0,0.44381932]
[1765570711809,0.31984214,90294.0,90293.0,0.40432647]
[1765570711975,0.31984214,90294.0,90293.0,0.40632647]
[1765570716325,0.31984214,90294.0,90293.0,0.48577477]
[1765570716526,0.31984214,90294.0,90293.0,0.52696277]
[1765570716930,0.31984214,90294.0,90293.0,0.44851447]
[1765570717163,0.31984214,90294.0,90293.0,0.52814038]
[1765570717327,0.31984214,90294.0,90293.0,0.48495238]
[1765570717908,0.54134079,90294.0,90293.0,0.16721287]
[1765570718260,0.62358079,90294.0,90293.0,0.001]
[1765570718639,0.62358079,90294.0,90293.0,0.03086355]
[1765570718821,0.62358079,90294.0,90293.0,0.001]
[1765570719284,0.64114079,90294.0,90293.0,0.001]
[1765570719456,0.59794079,90294.0,90293.0,0.001]
[1765570719669,0.59794079,90294.0,90281.0,0.02986355]
[1765570719670,0.2215281,90282.0,90281.0,0.02986355]
[1765570719864,0.22153546,90279.0,90278.0,0.02986355]
[1765570720023,0.22153546,90279.0,90274.0,0.03981612]
[1765570720409,0.22153546,90279.0,90275.0,0.01107726]
[1765570720613,0.22153546,90279.0,90278.0,0.02982518]
[1765570721061,0.22195328,90279.0,90278.0,0.02982518]
[1765570721336,0.22195328,90279.0,90276.0,0.02982518]
[1765570721526,0.22153546,90279.0,90277.0,0.00138902]
[1765570722620,0.22153546,90279.0,90277.0,0.00038902]
[1765570722999,0.22153546,90279.0,90278.0,0.001]
[1765570723399,0.26057546,90279.0,90277.0,0.00038902]
[1765570723601,0.22153546,90279.0,90277.0,0.00038902]
[1765570724008,0.03904,90278.0,90277.0,0.00038902]
[1765570724208,0.08224,90278.0,90277.0,0.00038902]
[1765570726812,0.08262798,90278.0,90277.0,0.00038902]
[1765570729097,0.00038798,90278.0,90277.0,0.00038902]
[1765570730660,0.00138798,90278.0,90277.0,0.00038902]
[1765570734906,0.00138798,90278.0,90277.0,0.22354226]
[1765570735247,0.00038798,90278.0,90277.0,0.00200189]
[1765570735406,0.00038798,90278.0,90277.0,0.00300189]
[1765570735607,0.00038798,90278.0,90277.0,0.15000189]
[1765570736667,0.22192589,90278.0,90277.0,0.15000189]
[1765570736877,0.00038798,90278.0,90277.0,0.15000189]
[1765570739910,0.00038798,90278.0,90277.0,0.17215592]
[1765570740272,0.00038798,90278.0,90277.0,0.2019811]
[1765570740891,0.00038798,90278.0,90277.0,0.17215592]
[1765570741092,0.00038798,90278.0,90277.0,0.2019811]
[1765570741391,0.00038798,90278.0,90277.0,0.17215592]
[1765570741716,0.00038798,90278.0,90277.0,0.15000189]
[1765570741880,0.00038798,90278.0,90277.0,0.14838902]
[1765570742084,0.08318798,90278.0,90277.0,0.14838902]
[1765570742287,0.08318798,90278.0,90277.0,0.14738902]
[1765570742582,0.05895798,90278.0,90277.0,0.14738902]
[1765570742834,0.05895798,90278.0,90277.0,0.00038902]
[1765570743014,0.08418798,90278.0,90277.0,0.00038902]
[1765570743214,0.08318798,90278.0,90277.0,0.00038902]
[1765570744309,0.37388798,90278.0,90277.0,0.00038902]
[1765570745800,0.01575798,90278.0,90277.0,0.00038902]
[1765570746361,0.05754798,90278.0,90277.0,0.00038902]
[1765570746759,0.03331798,90278.0,90277.0,0.00038902]
[1765570747081,0.05754798,90278.0,90277.0,0.00038902]
[1765570747423,0.10074798,90278.0,90277.0,0.00038902]
[1765570748125,0.07651798,90278.0,90277.0,0.00038902]
[1765570748379,0.10074798,90278.0,90277.0,0.00038902]
[1765570748737,0.15076637,90278.0,90277.0,0.00038902]
[1765570749962,0.08318798,90278.0,90277.0,0.00038902]
[1765570750166,0.06114798,90278.0,90277.0,0.00038902]
[1765570750369,0.00038798,90278.0,90277.0,0.00038902]
[1765570750581,0.01794798,90278.0,90277.0,0.00038902]
[1765570750779,0.05754798,90278.0,90277.0,0.00038902]
[1765570750989,0.0642916,90278.0,90277.0,0.00038902]
[1765570751785,0.44146637,90278.0,90277.0,0.00038902]
[1765570753287,0.44346637,90278.0,90277.0,0.00038902]
[1765570753484,0.44546637,90278.0,90277.0,0.00038902]
[1765570756290,0.00438798,90278.0,90277.0,0.00038902]
[1765570756552,0.02194798,90278.0,90277.0,0.00038902]
[1765570756737,0.00438798,90278.0,90277.0,0.00038902]
[1765570756906,0.00238798,90278.0,90277.0,0.00038902]
[1765570757108,0.00338798,90278.0,90277.0,0.00038902]
[1765570757511,0.0101316,90278.0,90277.0,0.00038902]
[1765570757751,0.0487316,90278.0,90277.0,0.00038902]
[1765570758108,0.0467316,90278.0,90277.0,0.00038902]
[1765570758579,0.0477316,90278.0,90277.0,0.00038902]
[1765570758926,0.0487316,90278.0,90277.0,0.00038902]
[1765570759538,0.0919316,90278.0,90277.0,0.00038902]
[1765570762285,0.00238798,90278.0,90277.0,0.00038902]
[1765570762489,0.0091316,90278.0,90277.0,0.00038902]
[1765570762966,0.0470616,90278.0,90277.0,0.00038902]
[1765570765679,0.0902616,90278.0,90277.0,0.00038902]
[1765570767769,0.0675316,90278.0,90277.0,0.00038902]
[1765570767919,0.0091316,90278.0,90277.0,0.00038902]
[1765570768122,0.00238798,90278.0,90277.0,0.00038902]
[1765570768891,0.0091316,90278.0,90277.0,0.00038902]
[1765570769083,0.0492916,90278.0,90277.0,0.00038902]
[1765570769572,0.0924916,90278.0,90277.0,0.00038902]
[1765570774616,0.09930999,90278.0,90277.0,0.00038902]
[1765570774818,0.43320999,90278.0,90277.0,0.00038902]
[1765570775021,0.44402637,90278.0,90277.0,0.00038902]
[1765570775217,0.46793443,90278.0,90277.0,0.00038902]
[1765570776480,0.00238798,90278.0,90277.0,0.00038902]
[1765570778049,0.0091316,90278.0,90277.0,0.00038902]
[1765570778983,0.0924916,90278.0,90277.0,0.00038902]
[1765570780725,0.0924916,90278.0,90277.0,0.00029484]
[1765570783945,0.14250999,90278.0,90277.0,0.00029484]
[1765570788177,0.15457999,90278.0,90277.0,0.00029484]
[1765570788422,0.15457999,90278.0,90238.0,0.07962591]
[1765570788423,0.22161155,90248.0,90247.0,0.147]
[1765570788571,0.22161155,90248.0,90227.0,0.01108315]
[1765570788572,0.01108217,90235.0,90231.0,0.01108266]
[1765570788778,0.01108143,90241.0,90236.0,0.01108205]
[1765570788941,0.23271212,90241.0,90236.0,0.01108205]
[1765570789365,0.01108156,90240.0,90237.0,0.01108192]
[1765570789566,0.01108119,90243.0,90239.0,0.01108168]
[1765570789918,0.01108143,90241.0,90238.0,0.0110818]
[1765570790480,0.01108131,90242.0,90239.0,0.01108168]
[1765570790723,0.01108094,90245.0,90241.0,0.01108143]
[1765570790924,0.01108094,90245.0,90242.0,0.01108131]
[1765570793120,0.01108082,90246.0,90242.0,0.01108131]
[1765570793707,0.01108057,90248.0,90245.0,0.01108094]
[1765570794013,0.23269539,90247.0,90244.0,0.01108106]
[1765570795058,0.23269698,90247.0,90243.0,0.01108119]
[1765570795220,0.23269698,90247.0,90239.0,0.22163125]
[1765570795221,0.22162715,90242.0,90239.0,0.01108168]
[1765570795423,0.22162363,90244.0,90239.0,0.01108168]
[1765570795624,0.01108156,90240.0,90237.0,0.00161287]
[1765570795853,0.22163611,90238.0,90237.0,0.00161287]
[1765570796770,0.2216312,90240.0,90237.0,0.00161287]
[1765570796966,0.23271276,90240.0,90237.0,0.00161287]
[1765570797171,0.22163611,90238.0,90237.0,0.00161287]
[1765570797377,0.01108156,90240.0,90237.0,0.00161287]
[1765570797565,0.23271517,90240.0,90237.0,0.00161287]
[1765570797762,0.01108156,90240.0,90237.0,0.00161287]
[1765570797958,0.01108119,90243.0,90240.0,0.01108156]
[1765570798305,0.01108131,90242.0,90238.0,0.22163611]
[1765570798469,0.23271043,90241.0,90237.0,0.01269479]
[1765570798669,0.23271043,90241.0,90237.0,0.00161287]
[1765570798670,0.22163366,90239.0,90237.0,0.00161287]
[1765570800223,0.01108143,90241.0,90237.0,0.01269479]
[1765570800444,0.02296,90256.0,90237.0,0.01269479]
[1765570800445,0.22161647,90246.0,90237.0,0.01269479]
[1765570800574,0.01108156,90240.0,90237.0,0.00161287]
[1765570800776,0.23271276,90240.0,90237.0,0.00161287]
[1765570801008,0.23271496,90240.0,90238.0,0.147]
[1765570801488,0.23271252,90241.0,90238.0,0.147]
[1765570801725,0.22163366,90239.0,90238.0,0.147]
[1765570802153,0.22163366,90239.0,90210.0,0.05973748]
[1765570802154,0.22165085,90232.0,90210.0,0.05973748]
[1765570802342,0.22165085,90232.0,90189.0,0.13955235]
[1765570802343,0.01108487,90213.0,90209.0,0.01108536]
[1765570802548,0.01108487,90213.0,90196.0,0.147]
[1765570802549,0.01108598,90204.0,90198.0,0.22173283]
[1765570802750,0.01108561,90207.0,90200.0,0.23281567]
[1765570802959,0.01131,90209.0,90204.0,0.23280562]
[1765570803128,0.01108524,90210.0,90206.0,0.01108573]
[1765570803549,0.23279309,90209.0,90206.0,0.01108573]
[1765570803748,0.23279309,90209.0,90205.0,0.01108585]
[1765570804049,0.22171228,90207.0,90204.0,0.00161287]
[1765570804359,0.22171699,90206.0,90204.0,0.00161287]
[1765570806284,0.22171699,90206.0,90204.0,0.00261287]
[1765570806517,0.22171699,90206.0,90204.0,0.001]
[1765570807239,0.08196,90205.0,90204.0,0.001]
[1765570807371,0.08188243,90205.0,90204.0,0.001]
[1765570807580,0.03868243,90205.0,90204.0,0.001]
[1765570807777,0.08188243,90205.0,90204.0,0.001]
[1765570808295,0.22172949,90200.0,90198.0,0.00038893]
[1765570808874,0.22173194,90199.0,90198.0,0.00038893]
[1765570809079,0.0432,90203.0,90198.0,0.01308852]
[1765570809080,0.0110861,90203.0,90198.0,0.01308852]
[1765570809276,0.23281079,90202.0,90200.0,0.01661249]
[1765570809479,0.01108622,90202.0,90200.0,0.01661249]
[1765570809774,0.01108585,90205.0,90201.0,0.02931171]
[1765570810049,0.23280101,90206.0,90202.0,0.22172457]
[1765570810255,0.01108598,90204.0,90201.0,0.01822536]
[1765570810451,0.22172211,90203.0,90201.0,0.00161287]
[1765570810652,0.001,90202.0,90201.0,0.00161287]
[1765570810852,0.22172211,90203.0,90201.0,0.00161287]
[1765570812650,0.22172253,90203.0,90201.0,0.00161287]
[1765570812862,0.001,90202.0,90201.0,0.00161287]
[1765570813011,0.22172253,90203.0,90201.0,0.00161287]
[1765570815364,0.22172253,90203.0,90201.0,0.00261287]
[1765570816850,0.22172253,90203.0,90201.0,0.00361287]
[1765570817216,0.00674362,90202.0,90201.0,0.00361287]
[1765570818080,0.00674362,90202.0,90201.0,0.00161287]
[1765570818521,0.00674362,90202.0,90201.0,0.00261287]
[1765570819535,0.00674362,90202.0,90201.0,0.00361287]
[1765570822604,0.23280616,90204.0,90201.0,0.00361287]
[1765570823367,0.23280616,90204.0,90201.0,0.00261287]
[1765570823592,0.22172417,90203.0,90201.0,0.00261287]
[1765570823977,0.23280616,90204.0,90201.0,0.00261287]
[1765570824364,0.01108585,90205.0,90202.0,0.01108622]
[1765570824825,0.01108585,90205.0,90203.0,0.147]
[1765570826342,0.26248965,90204.0,90203.0,0.147]
[1765570826512,0.22171965,90204.0,90203.0,0.147]
[1765570827304,0.22171965,90204.0,90203.0,0.148]
[1765570827871,0.22171965,90204.0,90203.0,0.147]
[1765570828219,0.22171965,90204.0,90203.0,0.148]
[1765570828600,0.26248965,90204.0,90203.0,0.148]
[1765570829207,0.22171965,90204.0,90203.0,0.148]
[1765570829613,0.22171965,90204.0,90203.0,0.147]
[1765570829817,0.22271965,90204.0,90203.0,0.147]
[1765570830209,0.001,90204.0,90203.0,0.147]
[1765570830587,0.001,90204.0,90201.0,0.01108635]
[1765570830769,0.01208598,90204.0,90200.0,0.01108647]
[1765570831161,0.0110861,90203.0,90200.0,0.01108647]
[1765570831359,0.22172884,90201.0,90199.0,0.147]
[1765570831594,0.01108622,90202.0,90199.0,0.147]
[1765570831799,0.22172912,90201.0,90199.0,0.147]
[1765570833625,0.22172912,90201.0,90199.0,0.148]
[1765570842621,0.08397,90200.0,90199.0,0.148]
[1765570843023,0.13398839,90200.0,90199.0,0.148]
[1765570843234,0.13398839,90200.0,90198.0,0.00038893]
[1765570843235,0.43143201,90200.0,90198.0,0.00038893]
[1765570843433,0.60877194,90199.0,90198.0,0.00038893]
[1765570843829,0.63272528,90199.0,90198.0,0.00038893]
[1765570845367,0.68274367,90199.0,90198.0,0.00038893]
[1765570845565,0.68474367,90199.0,90198.0,0.00038893]
[1765570846121,0.68674367,90199.0,90198.0,0.00038893]
[1765570849212,0.66279033,90199.0,90198.0,0.00038893]
[1765570853015,0.22176145,90187.0,90186.0,0.1]
[1765570853213,0.34291984,90187.0,90186.0,0.10016268]
[1765570853381,0.36566984,90187.0,90186.0,0.10016268]
[1765570854054,0.65636984,90187.0,90186.0,0.10016268]
[1765570854283,0.68026269,90187.0,90186.0,0.10016268]
[1765570854418,0.71357453,90187.0,90186.0,0.10016268]
[1765570855250,0.71457453,90187.0,90186.0,0.10016268]
[1765570855424,0.71557453,90187.0,90186.0,0.10016268]
[1765570855630,0.71457453,90187.0,90186.0,0.10016268]
[1765570855873,0.71657453,90187.0,90186.0,0.05016268]
[1765570858764,0.69268168,90187.0,90186.0,0.05016268]
[1765570859921,0.71653269,90187.0,90186.0,0.05016268]
[1765570860681,0.67233269,90187.0,90186.0,0.05016268]
[1765570860879,0.71753269,90187.0,90186.0,0.05016268]
[1765570861216,0.71553269,90187.0,90186.0,0.05016268]
[1765570861700,0.71753269,90187.0,90186.0,0.05016268]
[1765570861909,1.71753269,90187.0,90186.0,0.05016268]
[1765570863004,1.67033269,90187.0,90186.0,0.05016268]
[1765570863213,1.71953269,90187.0,90186.0,0.05016268]
[1765570863575,1.71953269,90187.0,90186.0,1e-08]
[1765570863780,0.60569459,90181.0,90180.0,0.0004]
[1765570863977,0.62125459,90181.0,90180.0,0.0004]
[1765570864292,0.6678556,90181.0,90180.0,0.0004]
[1765570864495,0.70117233,90181.0,90180.0,0.0004]
[1765570865287,0.2413362,90181.0,90180.0,0.0004]
[1765570865485,0.2237762,90181.0,90180.0,0.0004]
[1765570865800,0.002,90181.0,90180.0,0.00201287]
[1765570866004,0.004,90181.0,90180.0,0.00201287]
[1765570866571,0.002,90181.0,90180.0,0.00201287]
[1765570866888,0.002,90181.0,90180.0,0.00301287]
[1765570867312,0.002,90181.0,90180.0,0.00201287]
[1765570867472,0.22177439,90182.0,90180.0,0.00201287]
[1765570867678,0.22177439,90182.0,90180.0,0.00401287]
[1765570868521,0.01108856,90183.0,90180.0,0.0151018]
[1765570869113,0.01108856,90183.0,90180.0,0.0131018]
[1765570869289,0.01108856,90183.0,90180.0,0.0151018]
[1765570869642,0.01108856,90183.0,90180.0,0.00601287]
[1765570869856,0.01108856,90183.0,90180.0,0.00401287]
[1765570870214,0.23286128,90183.0,90180.0,0.00601287]
[1765570870396,0.2217762,90181.0,90180.0,0.00601287]
[1765570870601,0.22176642,90185.0,90180.0,0.00601287]
[1765570870602,0.01108831,90185.0,90180.0,0.0151018]
[1765570870820,0.01108831,90185.0,90181.0,0.23286501]
[1765570871021,0.22174693,90193.0,90186.0,0.01108819]
[1765570871230,0.24520481,90197.0,90192.0,0.01108745]
[1765570871492,0.01108684,90197.0,90192.0,0.01270032]
[1765570871719,0.23283092,90195.0,90192.0,0.00161287]
[1765570872155,0.22174669,90193.0,90192.0,0.00161287]
[1765570872372,0.01108672,90198.0,90192.0,0.00161287]
[1765570872373,0.01108672,90198.0,90195.0,0.01108708]
[1765570872654,0.22170563,90210.0,90198.0,0.01108672]
[1765570872655,0.01108536,90209.0,90198.0,0.01108672]
[1765570872863,0.01108573,90206.0,90203.0,0.0110861]
[1765570873070,0.22171453,90207.0,90203.0,0.0110861]
[1765570873279,0.01108536,90209.0,90204.0,0.01108598]
[1765570873488,0.01108549,90208.0,90204.0,0.01269885]
[1765570873692,0.01108561,90207.0,90204.0,0.00161287]
[1765570874299,0.01108536,90209.0,90205.0,0.01108585]
[1765570874511,0.22170493,90210.0,90205.0,0.01108585]
[1765570874512,0.01108524,90210.0,90207.0,0.01108561]
[1765570874722,0.01108524,90210.0,90207.0,0.00161287]
[1765570874938,0.22170736,90209.0,90207.0,0.00161287]
[1765570875978,0.0110861,90203.0,90200.0,0.01108647]
[1765570876190,0.22170736,90209.0,90200.0,0.01108647]
[1765570876191,0.01108536,90209.0,90202.0,0.01108622]
[1765570876401,0.23279506,90209.0,90207.0,0.001]
[1765570876805,0.01108549,90208.0,90204.0,0.01208598]
[1765570877046,0.01108536,90209.0,90204.0,0.01369885]
[1765570877258,0.2216763,90222.0,90204.0,0.01369885]
[1765570877259,0.04812385,90221.0,90214.0,0.01108475]
[1765570877474,0.26980417,90221.0,90216.0,0.0110845]
[1765570877717,0.03703996,90221.0,90218.0,0.01108426]
[1765570877938,0.26980247,90221.0,90215.0,0.01108463]
[1765570878149,0.01108401,90220.0,90216.0,0.0110845]